Cogmind - Beta 11 X8 @@@ ROGUE MODE // 2021.11.16 @ 03:16:02 Player: Runia Result: Destroyed by Enhanced Grunt with Neutron Cannon Performance ------------- Evolutions (3) 1500 Regions Visited (10) 2000 Robots Destroyed (100) 500 Value Destroyed (3056) 3056 Prototype IDs (48) 960 Alien Tech Used (0) 0 Bonus (624) 624 TOTAL SCORE: 8640 Bonus ------- High Alert Combat Kills 135 Follower Combat Kills 180 Aligned with FarCom 300 Met Data Miner 300 Friendly Fire -291 Cogmind --------- Core Integrity 0/700 Matter 202/300 Energy 4/100 System Corruption 0% Temperature Cool (6) Movement Core (50) Location -7/Data Miner Parts ------- > --- POWER (1) -------- (None) > --- PROPULSION (4) --- (None) > --- UTILITY (6) ------ Advanced Visual Processing Unit Improved Signal Interpreter > --- WEAPON (2) ------- (None) > --- INVENTORY (5) ---- Lightpack 2.0 Cooled Particle Cannon Proton Missile Launcher Peak State ------------ > --- POWER ------------ Cooled Deuterium Engine > --- PROPULSION ------- Armored Treads Compact Wheel Armored Huge Wheel > --- UTILITY ---------- High-capacity Storage Unit Advanced Visual Processing Unit Improved Signal Interpreter Improved Utility Shielding Hardened Medium Armor Plating Drone Bay > --- WEAPON ----------- Improved EM Pulse Cannon Cooled Particle Cannon > --- INVENTORY -------- Improved Deuterium Engine Aerolev Unit Gravmag System Advanced Heat Sink Lightpack 2.0 Improved Utility Shielding System Backup Module Cooled Particle Cannon Cooled Particle Cannon Enhanced Autogun Enhanced Autogun Enhanced Autogun Proton Missile Launcher Proton Missile Launcher Rocket Launcher Plasma Cutter Greatsword [Rating: 53] Favorites ----------- Power Ion Engine Engine Ion Engine Power Core Micro Nuclear Core Propulsion Light Treads Treads Light Treads Leg Aluminum Leg Wheel Armored Huge Wheel Hover Unit Aerolev Unit Utility High-capacity Storage Unit Device Advanced Heat Sink Storage High-capacity Storage Unit Processor Advanced Visual Processing Unit Hackware System Shield Protection Light Armor Plating Weapon Assault Rifle Energy Gun Advanced Beam Rifle Energy Cannon Cooled Particle Cannon Ballistic Gun Assault Rifle Launcher Grenade Launcher Special Weapon Plasma Cutter Slashing Weapon Ripper Build | -11 -10 -10 -10 -9 -8 -8 -7 -7 -7 -7 ------- Run | Scr Mat Min Exi Min Mat Sto Fac Low Low Dat Slots Evolved 6 | . . . . . 4 . 2 . . . Power . | . . . . . . . . . . . Propulsion 2 | . . . . . 1 . 1 . . . Utility 4 | . . . . . 3 . 1 . . . Weapon . | . . . . . . . . . . . Parts Attached 95 | 2 12 5 . 1 19 23 18 5 2 8 Power 12 | . 5 . . 1 1 4 1 . . . Engine 11 | . 5 . . . 1 4 1 . . . Core 1 | . . . . 1 . . . . . . Reactor . | . . . . . . . . . . . Propulsion 13 | 2 2 . . . 2 4 3 . . . Treads 8 | 2 2 . . . 1 2 1 . . . Leg . | . . . . . . . . . . . Wheel 4 | . . . . . 1 1 2 . . . Hover 1 | . . . . . . 1 . . . . Flight . | . . . . . . . . . . . Utility 21 | . 3 . . . 5 4 7 1 . 1 Device 7 | . 1 . . . 2 1 1 1 . 1 Storage 3 | . 1 . . . 2 . . . . . Processor 2 | . . . . . . 1 1 . . . Hackware 1 | . . . . . . . 1 . . . Protection 8 | . 1 . . . 1 2 4 . . . Artifact . | . . . . . . . . . . . Weapon 49 | . 2 5 . . 11 11 7 4 2 7 Energy Gun 12 | . . . . . 4 6 2 . . . Energy Cannon 7 | . . . . . . . 1 3 . 3 Ballistic Gun 17 | . 2 3 . . 4 2 2 . 1 3 Ballistic Cannon . | . . . . . . . . . . . Launcher 9 | . . 2 . . 3 3 . 1 . . Special Weapon 1 | . . . . . . . . . . 1 Impact Weapon . | . . . . . . . . . . . Slashing Weapon 3 | . . . . . . . 2 . 1 . Piercing Weapon . | . . . . . . . . . . . Special Melee Weapon . | . . . . . . . . . . . Unidentified Prototypes 6 | . . . . . 1 4 1 . . . Parts Lost 19 | . . 1 . . 3 2 1 . . 12 Power 3 | . . . . . 1 1 . . . 1 Propulsion 4 | . . . . . 1 . . . . 3 Utility 5 | . . . . . 1 1 . . . 3 Weapon 7 | . . 1 . . . . 1 . . 5 Highest Loss Streak 12 | . . 1 . . 1 1 1 . . 12 Average Slot Usage (%) 88 | . 94 100 100 100 79 81 79 90 92 86 Engine 9 | . 14 14 14 5 3 8 7 7 7 6 Treads 15 | . 28 28 28 28 10 9 6 7 7 6 Wheel 7 | . . . . . 7 8 10 15 15 13 Device 6 | . 3 . . . 11 11 7 7 7 6 Storage 11 | . 14 14 14 14 18 10 7 7 7 7 Processor 5 | . . . . . . 5 9 15 15 15 Protection 10 | . 5 14 14 14 5 8 14 15 15 14 Energy Gun 2 | . . . . . 3 9 2 . . . Energy Cannon 2 | . . . . . . . . 11 11 . Ballistic Gun 13 | . 27 27 28 28 13 8 5 . 1 6 Naked Turns . | . . . . . . . . . . . Heaviest Build 82 | 12 32 33 32 33 60 82 81 81 81 73 Greatest Support 44 | 40 40 40 40 40 40 28 44 44 44 44 Greatest Overweight (x) 18 | . . . . . 2 18 2 1 1 14 Average Overweight (x) . | . . . . . 1 2 1 1 1 1 Largest Inventory Capacity 20 | 8 15 15 15 15 20 20 20 20 20 20 Average Capacity 18 | 8 14 15 15 15 18 20 20 20 20 19 Most Carried 20 | 6 12 13 15 15 20 20 20 20 20 20 Average Carried 16 | 4 7 12 13 14 17 19 19 19 19 19 Final Capacity 20 | 8 15 15 15 15 20 20 20 20 20 5 Final Carried 20 | 1 12 12 15 15 19 20 20 20 20 5 Class Distribution -------------------- 69% | Mutant 19% | Scavenger-Mutant 8% | Skirmisher Dominant Class ---------------- Mutant | -10/Materials Mutant | -10/Mines Mutant | -10/Exiles Mutant | -9/Mines Skirmisher | -8/Materials Scavenger-Mutant | -8/Storage Mutant | -7/Factory Mutant | -7/Lower Caves Mutant | -7/Lower Caves Mutant | -7/Data Miner Resources | -11 -10 -10 -10 -9 -8 -8 -7 -7 -7 -7 ----------- Run | Scr Mat Min Exi Min Mat Sto Fac Low Low Dat Matter Collected 2346 | 200 628 201 50 36 261 618 125 201 26 . Remotely . | . . . . . . . . . . . Salvage Created 4187 | . 661 293 . 66 712 1622 366 229 101 137 Parts 213 | . 46 21 . 4 24 82 10 11 4 11 Haulers Intercepted 7 | . 1 . . . 1 4 1 . . . Recyclers Shooed 2 | . . . . . 1 . 1 . . . Parts Field Recycled . | . . . . . . . . . . . Retrieved Matter . | . . . . . . . . . . . Parts Self-Destructed 20 | . . . . . . . . 7 13 . Prevented 10 | . . . . . . . . 6 4 . Kills | -11 -10 -10 -10 -9 -8 -8 -7 -7 -7 -7 ------- Run | Scr Mat Min Exi Min Mat Sto Fac Low Low Dat Combat Hostiles Destroyed 69 | . 17 6 . 1 12 20 4 7 1 1 Melee 1 | . 1 . . . . . . . . . Guns 46 | . 16 4 . 1 4 15 4 . 1 1 Cannons 3 | . . . . . . . . 3 . . AOE 18 | . . 2 . . 8 4 . 4 . . Classes Destroyed 15 | . 3 3 . . 3 4 1 . 1 . Worker 9 | . . 2 . 1 1 5 . . . . Builder 2 | . . 1 . . . 1 . . . . Tunneler 1 | . . 1 . . . . . . . . Hauler 7 | . 1 . . . 1 4 1 . . . Recycler 7 | . . . . . 1 5 1 . . . Watcher 2 | . . . . . . 1 1 . . . Swarmer 9 | . 3 . . . . 2 . 4 . . Cutter 2 | . . . . . . 2 . . . . Grunt 47 | . 14 6 . 1 10 10 3 2 1 . Brawler 1 | . . . . . . . 1 . . . Duelist 1 | . . . . . 1 . . . . . Sentry 7 | . . . . . 1 6 . . . . Hunter 2 | . . . . . . 1 . 1 . . Heavy 1 | . . . . . . 1 . . . . Enhanced Grunt 1 | . . . . . . . . . . 1 Samaritan 1 | . . . . . . . . . 1 . Best Kill Streak 6 | . 5 2 . 2 6 4 2 4 1 1 Combat Bots Only 5 | . 5 2 . 1 4 4 2 4 1 1 Max Kills in Single Turn 4 | . 1 1 . 1 2 4 1 4 1 1 Gunslinging . | . . . . . . . . . . . Exploded 4 | . . 1 . . 1 2 . 4 . . Melee 1 | . 1 . . . . . . . . . Uniques/NPCs Destroyed 1 | . . . . . . . . . . 1 Data Miner (-7/Data Miner) Combat | -11 -10 -10 -10 -9 -8 -8 -7 -7 -7 -7 -------- Run | Scr Mat Min Exi Min Mat Sto Fac Low Low Dat Damage Taken 6307 | . 535 304 . 72 515 1225 892 93 23 2648 Core 1001 | . 94 90 . . 40 76 . . . 701 Absorbed by Shields . | . . . . . . . . . . . Core Remaining (%) 68 | 100 . . . 26 . 78 . . . . Volleys Fired 310 | . 57 26 . 3 37 90 24 15 38 20 Largest 2 | . 2 2 . 2 2 2 2 1 2 2 Hottest 122 | . 70 40 . 40 79 122 86 69 55 60 Shots Fired 543 | . 114 47 . 6 64 175 48 15 40 34 Gun 464 | . 114 43 . 6 54 171 48 . 2 26 Cannon 55 | . . . . . . . . 14 38 3 Launcher 19 | . . 4 . . 10 4 . 1 . . Special 5 | . . . . . . . . . . 5 Kinetic 345 | . 113 43 . 6 49 78 28 . 2 26 Thermal 168 | . 1 . . . 5 93 20 3 38 8 Explosive 12 | . . 4 . . 3 4 . 1 . . Electromagnetic 18 | . . . . . 7 . . 11 . . Robot Hit Streak 16 | . 7 9 . 3 8 16 12 8 7 10 Robot Miss Streak 6 | . 3 2 . 2 2 6 2 1 1 1 Penetration Max . | . . . . . . . . . . . Secondary Targets 5 | . . . . . 1 2 1 . . 1 Max Gunslinging Chain 1 | . . . . . 1 1 1 . . 1 Shots Hit Robots 362 | . 76 29 . 2 45 114 42 9 9 36 Core Hits 178 | . 30 18 . 2 37 55 13 8 3 12 Critical Kills 4 | . . 1 . . . 1 2 . . . Critical Parts Destroyed 2 | . . 1 . . . 1 . . . . Critical Strikes 13 | . . 2 . . . 8 3 . . . Burn 7 | . . . . . . 6 1 . . . Destroy 6 | . . 2 . . . 2 2 . . . Melee Attacks 29 | . . . . . . . 9 . 2 18 Impact . | . . . . . . . . . . . Slashing 29 | . . . . . . . 9 . 2 18 Piercing . | . . . . . . . . . . . Sneak Attacks 3 | . . . . . . . 2 . . 1 Combat Hostiles . | . . . . . . . . . . . Follow-up Attacks . | . . . . . . . . . . . Damage Inflicted 8367 | . 956 484 . 29 1551 2822 1020 517 167 821 Guns 5065 | . 947 349 . 29 513 2139 695 . 31 362 Cannons 466 | . . . . . . . . 276 136 54 Explosions 2085 | . . 135 . . 1038 671 . 241 . . Melee 701 | . . . . . . . 325 . . 376 Ramming 21 | . 9 . . . . 12 . . . . Kinetic 3511 | . 947 349 . 29 445 913 435 . 31 362 Thermal 1967 | . . . . . 207 1226 260 55 136 83 Explosive 1314 | . . 135 . . 322 671 . 186 . . Electromagnetic 853 | . . . . . 577 . . 276 . . Impact . | . . . . . . . . . . . Slashing 701 | . . . . . . . 325 . . 376 Piercing . | . . . . . . . . . . . Highest Corruption 1 | . . . . . . . 1 . . . Average Corruption 1 | . . . . . . . 1 . . . Corruption Purged 1 | . . . . . . . 1 . . . Effects 1 | . . . . . . . 1 . . . Message Errors 1 | . . . . . . . 1 . . . Overload Shots . | . . . . . . . . . . . Overflow Damage 303 | . . . . . 50 53 183 . 1 16 Projectiles 1 | . . . . . . . . . 1 . Explosions 103 | . . . . . 50 53 . . . . Melee 199 | . . . . . . . 183 . . 16 Knockbacks . | . . . . . . . . . . . Impact . | . . . . . . . . . . . Kinetic . | . . . . . . . . . . . Secondary . | . . . . . . . . . . . Self-Inflicted Damage 132 | . . . . . 73 59 . . . . Shots 5 | . . . . . 3 2 . . . . Rammed 4 | . 2 . . . . 2 . . . . Targets Rammed 5 | . 3 . . . . 2 . . . . Kicked . | . . . . . . . . . . . Crushed 1 | . 1 . . . . . . . . . Highest Temperature 121 | . 9 31 . . 10 115 30 121 2 105 Average Temperature 30 | . 2 6 . . 3 37 12 53 1 49 Received Heat Transfer 1683 | . 258 189 . 39 225 405 216 9 . 342 Siege Activations . | . . . . . . . . . . . Robots Corrupted . | . . . . . . . . . . . Combat Hostiles . | . . . . . . . . . . . Parts Fried 7 | . . . . . 5 . . 2 . . Impact Corruptions . | . . . . . . . . . . . Robots Melted 1 | . . . . . . 1 . . . . Combat Hostiles 1 | . . . . . . 1 . . . . Parts Melted 10 | . . . . . 1 6 . . . 3 Heat Transferred 4072 | . . . . . 248 2775 555 50 185 259 Parts Sabotaged . | . . . . . . . . . . . Parts Stolen . | . . . . . . . . . . . Parts Stripped . | . . . . . . . . . . . Power Chain Reactions 4 | . . . . . 3 . . 1 . . Missiles Intercepted . | . . . . . . . . . . . Alert | -11 -10 -10 -10 -9 -8 -8 -7 -7 -7 -7 ------- Run | Scr Mat Min Exi Min Mat Sto Fac Low Low Dat Peak Influence 596 | . 240 148 . 40 265 596 369 . . . Initial 214 | . . 73 . . 15 39 214 . . . Average 205 | . 82 53 . 8 109 391 250 . . . Maximum Alert Level 2 | . 1 . . . 1 2 1 . . . Low Security (%) 56 | 100 88 100 . 100 83 5 46 . . . Level 1 25 | . 11 . . . 16 42 53 . . . Level 2 17 | . . . . . . 51 . . . . Level 3 . | . . . . . . . . . . . Level 4 . | . . . . . . . . . . . Level 5 . | . . . . . . . . . . . High Security . | . . . . . . . . . . . Max Security . | . . . . . . . . . . . Squads Dispatched 17 | . 7 . . 1 1 6 2 . . . Investigation 7 | . 4 . . 1 . 1 1 . . . Extermination . | . . . . . . . . . . . Reinforcement 9 | . 3 . . . 1 4 1 . . . Assault . | . . . . . . . . . . . Garrison 1 | . . . . . . 1 . . . . Intercept . | . . . . . . . . . . . Construction Impeded . | . . . . . . . . . . . Haulers Reinforced 1 | . . . . . . . 1 . . . Active Scanning Responses . | . . . . . . . . . . . Cargo Convoy Interrupts . | . . . . . . . . . . . Stealth | -11 -10 -10 -10 -9 -8 -8 -7 -7 -7 -7 --------- Run | Scr Mat Min Exi Min Mat Sto Fac Low Low Dat Distress Signals 4 | . . . . . 3 1 . . . . Communications Jammed . | . . . . . . . . . . . Distress Signals . | . . . . . . . . . . . Times Spotted 123 | . 30 6 . 2 15 42 10 7 7 4 Peak Tracking Total 9 | . 5 2 . 2 4 9 5 4 6 4 Tactical Retreats 6 | . 2 . . . 1 3 . . . . Traps | -11 -10 -10 -10 -9 -8 -8 -7 -7 -7 -7 ------- Run | Scr Mat Min Exi Min Mat Sto Fac Low Low Dat Traps Triggered 5 | . 2 . . . 1 . 2 . . . Indirectly . | . . . . . . . . . . . Trap Hack Attempts . | . . . . . . . . . . . Triggered . | . . . . . . . . . . . Disarmed . | . . . . . . . . . . . Reprogrammed 2 | . . . . . . 2 . . . . Reused . | . . . . . . . . . . . Traps Extracted . | . . . . . . . . . . . Installed . | . . . . . . . . . . . Triggered 3 | . . . . . . . . . 3 . Machines | -11 -10 -10 -10 -9 -8 -8 -7 -7 -7 -7 ---------- Run | Scr Mat Min Exi Min Mat Sto Fac Low Low Dat Machines Disabled 18 | . . 2 . . 7 5 . . 3 1 Max in Single Turn 2 | . . 2 . . 2 2 . . 1 1 Garrison Access 1 | . . . . . . 1 . . . . Machines Sabotaged . | . . . . . . . . . . . Garrisons Compromised . | . . . . . . . . . . . Overloaded Fab Kills . | . . . . . . . . . . . Hacking | -11 -10 -10 -10 -9 -8 -8 -7 -7 -7 -7 --------- Run | Scr Mat Min Exi Min Mat Sto Fac Low Low Dat Machines Accessed 37 | . 7 . 2 1 3 13 4 . 3 4 Terminals 15 | . 5 . . . 1 8 . . 1 . Fabricators 1 | . . . . . . . 1 . . . Repair Stations 3 | . . . . . . 2 1 . . . Recycling Units 6 | . 2 . . . 1 2 1 . . . Scanalyzers 2 | . . . . . 1 . 1 . . . Garrison Access 1 | . . . . . . 1 . . . . Total Hacks 130 | . 24 . 2 1 13 39 9 . 14 28 Successful 94 | . 14 . 2 1 8 23 4 . 14 28 Failed 36 | . 10 . . . 5 16 5 . . . Catastrophic 7 | . 2 . . . 1 3 1 . . . Database Lockouts . | . . . . . . . . . . . Manual 19 | . 5 . 1 . 6 7 . . . . Terminals 59 | . 19 . . . 8 29 . . 3 . Fabricators 2 | . . . . . . . 2 . . . Repair Stations 8 | . . . . . . 5 3 . . . Recycling Units 14 | . 5 . . . 2 4 3 . . . Scanalyzers 4 | . . . . . 3 . 1 . . . Garrison Access 1 | . . . . . . 1 . . . . Terminal Hacks 74 | . 10 . 2 1 4 15 . . 14 28 Record 25 | . . . 1 . . . . . 13 11 Part Schematic 12 | . . . . . . 3 . . . 9 Robot Schematic 5 | . . . . . . . . . . 5 Prototype ID Bank 9 | . 3 . . . 1 2 . . . 3 Open Door 4 | . . . . 1 . 2 . . 1 . Branch Access Points 1 | . . . . . 1 . . . . . Terminal Index 1 | . 1 . . . . . . . . . Alert Level 2 | . . . . . 1 1 . . . . Unreport Threat 4 | . 2 . . . 1 1 . . . . Locate Traps 4 | . 2 . . . . 2 . . . . Reprogram Traps 1 | . . . . . . 1 . . . . Hauler Manifests 3 | . 1 . . . . 2 . . . . Zone Layout 2 | . 1 . . . . 1 . . . . EX-Prototype ID Bank 1 | . . . 1 . . . . . . . Fabricator Hacks 1 | . . . . . . . 1 . . . Network Status 1 | . . . . . . . 1 . . . Repair Station Hacks 6 | . . . . . . 4 2 . . . Scan Component 3 | . . . . . . 2 1 . . . Repair 3 | . . . . . . 2 1 . . . Recycling Unit Hacks 7 | . 2 . . . 2 2 1 . . . Report Inventory 5 | . 2 . . . 1 1 1 . . . Retrieve Components 2 | . . . . . 1 1 . . . . Scanalyzer 2 | . . . . . 2 . . . . . Insert Component 1 | . . . . . 1 . . . . . Analyze 1 | . . . . . 1 . . . . . Garrison Access Hacks 1 | . . . . . . 1 . . . . Seal Access 1 | . . . . . . 1 . . . . Unauthorized Hacks 3 | . 2 . . . . 1 . . . . Terminals . | . . . . . . . . . . . Fabricators . | . . . . . . . . . . . Repair Stations . | . . . . . . . . . . . Recycling Units 3 | . 2 . . . . 1 . . . . Tunnel 3 | . 2 . . . . 1 . . . . Scanalyzers . | . . . . . . . . . . . Garrison Access . | . . . . . . . . . . . Data Cores Recovered . | . . . . . . . . . . . Used . | . . . . . . . . . . . Hacking Detections 20 | . 6 . . . 2 7 4 . 1 . Full Trace Events 1 | . . . . . . . 1 . . . Feedback Events . | . . . . . . . . . . . Feedback Blocked . | . . . . . . . . . . . Robot Schematics Acquired 5 | . . . . . . . . . . 5 Robots Built . | . . . . . . . . . . . Authchips . | . . . . . . . . . . . Time . | . . . . . . . . . . . Total Robot Build Rating . | . . . . . . . . . . . Part Schematics Acquired 13 | . . . . . 1 3 . . . 9 Parts Built . | . . . . . . . . . . . Authchips . | . . . . . . . . . . . Time . | . . . . . . . . . . . Total Part Build Rating . | . . . . . . . . . . . Parts Repaired 3 | . . . . . . 2 1 . . . Time 126 | . . . . . . 88 38 . . . Parts Recycled . | . . . . . . . . . . . Recycled Matter . | . . . . . . . . . . . Retrieved Matter . | . . . . . . . . . . . Retrieved Components 12 | . . . . . 9 3 . . . . Parts Scanalyzed 1 | . . . . . 1 . . . . . Part Schematics Acquired 1 | . . . . . 1 . . . . . Parts Damaged . | . . . . . . . . . . . Bothacking | -11 -10 -10 -10 -9 -8 -8 -7 -7 -7 -7 ------------ Run | Scr Mat Min Exi Min Mat Sto Fac Low Low Dat Used RIF Installer . | . . . . . . . . . . . Robots Hacked . | . . . . . . . . . . . Non-combat . | . . . . . . . . . . . Combat . | . . . . . . . . . . . Robot Hacks Applied . | . . . . . . . . . . . Relay Couplers Released . | . . . . . . . . . . . Fabnet Peak Effective % . | . . . . . . . . . . . Robots Rewired . | . . . . . . . . . . . Allies Hacked . | . . . . . . . . . . . Hacks Repelled . | . . . . . . . . . . . Allies | -11 -10 -10 -10 -9 -8 -8 -7 -7 -7 -7 -------- Run | Scr Mat Min Exi Min Mat Sto Fac Low Low Dat Total Allies 10 | . . . . . . 10 . . . . Largest Group 10 | . . . . . . 10 . . . . Highest-Rated Group 173 | . . . . . . 173 . . . . Highest-Rated Ally 29 | . . . . . . 29 . . . . Total Orders 2 | . . . . . . . . 1 1 . EXPLORE 2 | . . . . . . . . 1 1 . Ally Attacks 87 | . . . . . . 87 . . . . Total Damage 1107 | . . . . . . 1107 . . . . Kills 11 | . . . . . . 11 . . . . Allies Corrupted . | . . . . . . . . . . . Allies Melted 1 | . . . . 1 . . . . . . Intel | -11 -10 -10 -10 -9 -8 -8 -7 -7 -7 -7 ------- Run | Scr Mat Min Exi Min Mat Sto Fac Low Low Dat Robot Analysis Total . | . . . . . . . . . . . Derelict Logs Recovered 4 | . . 1 . . . . . . 3 . Drone Launches 2 | . . . . . . . . 1 1 . Drone Recoveries 2 | . . . . . . . . 1 1 . Exploration | -11 -10 -10 -10 -9 -8 -8 -7 -7 -7 -7 ------------- Run | Scr Mat Min Exi Min Mat Sto Fac Low Low Dat Turns Passed 7467 | 8 1082 944 475 116 621 1755 749 643 764 310 Spaces Moved 4364 | 1 522 530 297 57 314 992 431 523 524 173 Core 5 | . . . . . . 2 . . . 3 Treads 1488 | 1 522 530 297 57 81 . . . . . Legs . | . . . . . . . . . . . Wheels 2871 | . . . . . 233 990 431 523 524 170 Hover . | . . . . . . . . . . . Flight . | . . . . . . . . . . . Fastest Speed 50 | 160 160 160 160 160 115 115 115 115 115 50 Average Speed 136 | 160 160 160 160 160 141 131 123 115 115 117 Slowest Speed 950 | 160 160 160 160 160 240 950 130 115 115 750 Overloaded Moves . | . . . . . . . . . . . Propulsion Burnouts . | . . . . . . . . . . . Robots Hopped . | . . . . . . . . . . . Cave-ins Triggered . | . . . . . . . . . . . Exploration Rate (%) 56 | 2 91 99 70 15 24 89 14 70 72 80 Regions Visited 10 Branch Regions 7 Pre-discovered Areas 7 | . 2 . 1 . . 1 . . 2 1 Known Exits Taken 5 | . . . 1 . 1 . 1 1 1 . Unknown Exits Taken 5 | 1 1 1 . 1 . 1 . . . . Scrap Searched 4 | . . 1 . . . . . 3 . . Spaces Dug 22 | . . 9 . . . . 5 1 7 . Terrain Destroyed 109 | . . 27 . . 26 29 5 13 9 . Melee 5 | . . . . . . . 5 . . . Projectile 10 | . . . . . . . . 1 9 . AOE 94 | . . 27 . . 26 29 . 12 . . Terrain Rammed . | . . . . . . . . . . . Walls Destroyed . | . . . . . . . . . . . Machines Disabled . | . . . . . . . . . . . Actions | -11 -10 -10 -10 -9 -8 -8 -7 -7 -7 -7 --------- Run | Scr Mat Min Exi Min Mat Sto Fac Low Low Dat Total 5350 | 10 652 577 297 77 423 1291 602 548 643 230 Wait 407 | 3 36 16 . 12 39 140 79 4 73 5 Move 4354 | . 521 529 296 56 313 991 430 522 523 173 Hop . | . . . . . . . . . . . Pick Up 70 | . 14 1 1 2 8 20 19 1 3 1 Fast Attach 27 | . 2 . . 1 7 9 8 . . . Attach 24 | 2 1 1 . . 6 1 6 2 . 5 Detach 1 | . . . . . . . . . . 1 Swap 44 | . 9 4 . . 6 13 4 3 2 3 Drop 79 | 5 9 . . 3 7 25 23 1 2 4 Fire 310 | . 57 26 . 3 37 90 24 15 38 20 Melee 29 | . . . . . . . 9 . 2 18 Ram 2 | . . . . . . 2 . . . . Kick . | . . . . . . . . . . . Crush 3 | . 3 . . . . . . . . . Escape Stasis . | . . . . . . . . . . . Rewire . | . . . . . . . . . . . Trap . | . . . . . . . . . . . Miscellaneous . | . . . . . . . . . . . Route ------- -11/Scrapyard -10/Materials (discovered 5 exits: [*Mat x3] / [*Min x2]) -10/Mines (discovered 3 exits: [*Mat x2] / *Exi) -10/Exiles (discovered 2 exits: *Min x2) -9/Mines -8/Materials (discovered 2 exits: *Sto x2) -8/Storage -7/Factory -7/Lower Caves -7/Lower Caves (discovered 2 exits: [*Fac] / *Dat) -7/Data Miner (discovered 1 exit: [*Pro]) History --------- Turn | Location | Event 9 | -11/Scrapyard | Discovered new exit (range 0) 9 | -11/Scrapyard | Entered Materials 146 | -10/Materials | Discovered new exit (range 13) 318 | -10/Materials | Build established: Mutant 376 | -10/Materials | Discovered new exit (range 15) 466 | -10/Materials | Discovered new exit (range 15) 768 | -10/Materials | Discovered new exit (range 16) 991 | -10/Materials | Discovered new exit (range 8) 1091 | -10/Materials | Entered Mines 1133 | -10/Mines | Discovered new exit (range 12) 1266 | -10/Mines | Received a Rocket Launcher from a helpful Derelict 1345 | -10/Mines | Core integrity fell below 50% 1968 | -10/Mines | Discovered new exit (range 5) 2028 | -10/Mines | Deemed a non-threat by the Exiles lab entrance 2028 | -10/Mines | Discovered new exit (range 5) 2035 | -10/Mines | Entered Exiles 2036 | -10/Exiles | Identified exit to Mines 2074 | -10/Exiles | Met 8R-AWN 2101 | -10/Exiles | Met EX-HEX 2165 | -10/Exiles | Met EX-DEC 2171 | -10/Exiles | Learned location of Zion (-6) 2197 | -10/Exiles | Met EX-BIN 2219 | -10/Exiles | Aligned with FarCom system 2221 | -10/Exiles | Given EX-Vault access code 2261 | -10/Exiles | Opened EX-Vault 2271 | -10/Exiles | Found Lightpack 2.0 2304 | -10/Exiles | Warned to stay clear of 0b10 Research branches 2510 | -10/Exiles | Left Exiles lab with Lightpack 2.0 2510 | -10/Exiles | Entered Mines 2539 | -9/Mines | Met a Derelict shopkeep closing up shop 2612 | -9/Mines | Discovered new exit (range 9) 2626 | -9/Mines | Entered Materials 2626 | -8/Materials | Evolved 4 slots: Propulsion x1, Utility x3 2952 | -8/Materials | Build established: Skirmisher 3159 | -8/Materials | Discovered new exit (range 15) 3225 | -8/Materials | Identified exit to Storage 3247 | -8/Materials | Entered Storage 3276 | -8/Storage | Garrison activated, responded to threat 3340 | -8/Storage | Assisted by bots powering up and referring to "LRC-V3" 3435 | -8/Storage | Repaired Arm. Huge Wheel 3793 | -8/Storage | Build established: Scavenger-Mutant 4228 | -8/Storage | Discovered new exit (range 19) 4302 | -8/Storage | Repaired Hrd. Heavy Armor Plating 5002 | -8/Storage | Entered Factory 5002 | -7/Factory | Evolved 2 slots: Propulsion x1, Utility x1 5341 | -7/Factory | Build established: Mutant 5611 | -7/Factory | Repaired Arm. Treads 5657 | -7/Factory | Discovered new exit (range 9) 5665 | -7/Factory | Identified exit to Lower Caves 5751 | -7/Factory | Entered Lower Caves 5775 | -7/Lower Caves | Encountered a Warlord checkpoint 6116 | -7/Lower Caves | Spotted B-75 Beast 6336 | -7/Lower Caves | Discovered new exit (range 18) 6355 | -7/Lower Caves | Identified exit to Lower Caves 6394 | -7/Lower Caves | Entered another Lower Caves area 6471 | -7/Lower Caves | Discovered new exit (range 8) 6666 | -7/Lower Caves | Learned Extension garrison access intel 6666 | -7/Lower Caves | Learned Armory terminal intel 6666 | -7/Lower Caves | Learned Factory terminal intel 6666 | -7/Lower Caves | Learned Factory trap positions 6666 | -7/Lower Caves | Learned location of 1 exit from Research 6666 | -7/Lower Caves | Learned location of Extension (-6) 6666 | -7/Lower Caves | Learned location of Armory (-4) 6695 | -7/Lower Caves | Learned 8 Factory zone layouts 6733 | -7/Lower Caves | Learned Factory trap positions 6926 | -7/Lower Caves | Attracted the attention of an 0b10 base 6981 | -7/Lower Caves | Learned Research security intel 6981 | -7/Lower Caves | Learned Armory stockpile data 6981 | -7/Lower Caves | Learned 6 Upper Caves zone layouts 7130 | -7/Lower Caves | Discovered new exit (range 8) 7138 | -7/Lower Caves | Identified exit to Data Miner 7151 | -7/Lower Caves | Acquired the password to a Derelict Tinkerer's latest research 7158 | -7/Lower Caves | Entered Data Miner 7158 | -7/Data Miner | Discovered new exit (range 6) 7176 | -7/Data Miner | Met Data Miner 7203 | -7/Data Miner | Learned location of Section 7 (-3) 7203 | -7/Data Miner | Acquired the access code to Warlord's prototype stash 7222 | -7/Data Miner | Received God Mode back door access code from Data Miner 7325 | -7/Data Miner | Destroyed Data Miner 7328 | -7/Data Miner | Data Conduit disabled 7332 | -7/Data Miner | Found Prototype Hackware 7455 | -7/Data Miner | Core integrity fell below 50% 7464 | -7/Data Miner | Core integrity fell below 20% 7468 | -7/Data Miner | Destroyed by Enhanced Grunt with Neutron Cannon Last Messages --------------- 07437_ Enhanced Grunt overheating. 07439_ Adv. Particle Charger melted. 07439_ Antimatter Reactor melted. 07439_ Prototype Device melted. 07439_ Enhanced Grunt destroyed. 07439_ Switching to secondary target: Enhanced Grunt. 07441_ Arm. Treads destroyed. 07441_ Hrd. Medium Armor Plating destroyed. 07441_ Enh. Autogun destroyed. 07444_ Cld. Deuterium Engine destroyed. 07446_ Imp. Utility Shielding destroyed. 07448_ Enh. Autogun destroyed. 07451_ Weapon Cycler destroyed. 07458_ Enh. Autogun destroyed. 07460_ Cld. Particle Cannon destroyed. 07465_ Dropped Hcp. Storage Unit. 07465_ Dropped System Backup Module. 07465_ System Backup Module crushed and broken. 07468_ Dropped Cld. Particle Cannon. 07468_ Cld. Particle Cannon crushed and broken. Map ----- +----------------------------------------------------+ | | | | | | | | | | | | | | | | | | | | | | | | | | | | | ??????????????????????????????? | | ??????????????????????????????? | | ??????????????????????????????? | | ??????????????????????????????? | | ??????????????????????????????? | | ????#################?????????? | | ???##"""""""""""""""######????? | | ??##""""""""" """"""""# # ## | | ??#"""""""""" | | ??#"""* " | | ###"""g]"! | | #=]!=%@""%*! | | ??#"gg!"""! | | ??#"!!"""" """"""" | | ??#!""]"""" """"##### | | ?#!#"=""""" """""###???? | | ?#?##"/"""""" "#####?????? | | ????########"## "#?????????? | | ???????????#"### "#?????????? | | ???????????#"### "#?????????? | | ???????????#"## "#?????????? | | ???????????#"## "#?????????? | | ?????????????# "#?????????? | | ?????????????### "#?????????? | | ???????????????# "##????????? | | ??????????????## ""#????????? | | ???????????#?## ""#????????? | | ????????#"##"#"X ""#????????? | | ????????#"""""" "#####????? | | ????????##""""" X"""""#????? | | ?????????###"#"X "##"##????? | | ???????????#"## X""""#?????? | | ???????????#??## "##"#?????? | | ???????????????#######??#?????? | | ??????????????????????????????? | | ??????????????????????????????? | +----------------------------------------------------+ Best States ------------- Heat Dissipation 64 Energy Generation 18 Energy Capacity 310 Matter Stores 500 Matter Capacity 500 Sight Range 20 Terrain Scan Range 16 Terrain Scan Density 10 Armor Coverage 750 Core Shielding 20 Utility Shielding 66 Weapon Cycling 15 Evasion (%) 40 Recoil Reduction 2 Defensive Hacking 10 Item Schematics ----------------- Imp. Carbon-fiber Leg | -8/Materials | Scanalyzed Coolant Injector | -8/Storage | Hacked Imp. EM Pulse Cannon | -8/Storage | Hacked Imp. Utility Shielding | -8/Storage | Hacked Combat Drone Bay | -7/Data Miner | Free Lgt. Regenerative Plating | -7/Data Miner | Free Cld. Cesium-ion Thruster | -7/Data Miner | Free Exp. Propulsion Shielding | -7/Data Miner | Free Imp. Heavy Laser | -7/Data Miner | Free Arm. Medium Treads | -7/Data Miner | Free Imp. Coolant Injector | -7/Data Miner | Free Adv. Plasma Cannon | -7/Data Miner | Free Adv. Coolant Injector | -7/Data Miner | Free Robot Schematics ------------------ A-15 Conveyor | -7/Data Miner | Free M-22 Extractor | -7/Data Miner | Free L-41 Fighter | -7/Data Miner | Free G-47 Trooper | -7/Data Miner | Free R-10 Processor | -7/Data Miner | Free Fabricated ------------ Nothing Alien Tech Used ----------------- None Achievements -------------- None Challenges ------------ None Game ------ Seed SpliceReclamationNanovents Manual? 0 Play Time 00:52:53 Cumulative 486.6 hours Start 2021.11.16 @ 02:14:20 End 2021.11.16 @ 03:16:02 Sessions 1 Manual Loads 0 Difficulty Rogue Special Mode None Game No. 479 Rogue 479 Adventurer 0 Explorer 0 Win Type - Total 12 Types 9/0/2/1/0/0/0/0/0 Lore% 82 Gallery% 93 Achievement% 72 Wizard Run 0 Options --------- ASCII 0 Keyboard 0 Movement Mouse Keybinds 1 Fullscreen 2 Font 24/Smallcaps Map View 76x50 Tactical HUD 1 Map Filters NONE Filters NONE Steam 1 RUN: baafc6da-e7a6-48b1-9da7-95278627bf77